bitfinex-derivatives/quotes_ETHF0:USTF0_20260223
["timestamp","ask_amount","ask_price","bid_price","bid_amount"]
[1771833691410,4.71844813,1884.5,1883.4,0.76482084]
[1771833691610,7.68824762,1884.4,1883.4,0.76482084]
[1771833691810,7.68824762,1884.3,1883.4,0.76482084]
[1771833692110,7.68824762,1884.2,1883.4,0.76482084]
[1771833692311,0.54045577,1884.1,1883.4,0.76482084]
[1771833692511,4.45304813,1884.4,1883.4,0.76482084]
[1771833692711,7.68759177,1884.3,1883.4,0.76482084]
[1771833693011,7.68759177,1884.2,1883.4,0.76482084]
[1771833693206,0.54041436,1884.1,1883.4,0.76482084]
[1771833693407,4.45304813,1884.4,1883.4,0.76482084]
[1771833693611,7.68724569,1884.3,1883.4,0.76482084]
[1771833693810,7.68724569,1884.2,1883.4,0.76482084]
[1771833694008,0.5403939,1884.1,1883.4,0.76482084]
[1771833694208,4.71844813,1884.5,1883.4,0.76482084]
[1771833694409,7.68644005,1884.4,1883.4,0.76482084]
[1771833694609,7.68644005,1884.3,1883.4,0.76482084]
[1771833694811,7.68644005,1884.2,1883.4,0.76482084]
[1771833695010,0.54033888,1884.1,1883.4,0.76482084]
[1771833695213,0.2654,1884.5,1883.4,0.76482084]
[1771833695413,7.68564625,1884.4,1883.4,0.76482084]
[1771833695615,0.54038194,1884.3,1883.4,0.76482084]
[1771833695813,0.2654,1884.5,1883.4,0.76482084]
[1771833696114,7.68562585,1884.4,1883.4,0.76482084]
[1771833696314,0.54037595,1884.3,1883.4,0.76482084]
[1771833696513,0.2654,1884.5,1883.4,0.76482084]
[1771833696814,0.54049792,1884.4,1883.4,0.76482084]
[1771833697017,10.92004813,1884.8,1883.4,0.76482084]
[1771833697221,7.68778982,1884.7,1883.4,0.76482084]
[1771833697422,7.68778982,1884.6,1883.4,0.76482084]
[1771833697617,7.68778982,1884.5,1883.4,0.76482084]
[1771833697817,0.54050343,1884.4,1883.4,0.76482084]
[1771833698017,0.54050343,1884.3,1883.4,0.76482084]
[1771833698218,4.45304813,1884.8,1883.4,0.76482084]
[1771833698417,7.69052969,1884.7,1883.4,0.76482084]
[1771833698719,0.26533,1885.1,1883.4,0.76482084]
[1771833698720,7.69052969,1884.6,1883.4,0.76482084]
[1771833698917,0.54068991,1884.5,1883.4,0.76482084]
[1771833699114,7.07023991,1884.4,1883.4,0.00438432]
[1771833699313,7.07023991,1884.4,1882.5,0.75525892]
[1771833699314,0.26549,1883.9,1882.5,0.75525892]
[1771833699518,0.26551,1883.7,1882.5,0.75525892]
[1771833699719,7.69161115,1883.6,1882.5,0.75525892]
[1771833699924,0.54068991,1883.5,1882.5,0.75525892]
[1771833700117,4.45304813,1884.1,1882.5,0.75525892]
[1771833700323,4.45304813,1884.1,1882.5,0.75945178]
[1771833700324,7.68874701,1884.0,1882.5,0.75945178]
[1771833700524,7.68874701,1883.9,1882.5,0.75945178]
[1771833700721,7.68874701,1883.8,1882.5,0.75945178]
[1771833700923,4.45758038,1884.1,1882.5,0.75945178]
[1771833700924,0.54061227,1883.7,1882.5,0.75945178]
[1771833701220,0.54028527,1883.6,1882.5,0.75945178]
[1771833701423,0.26547,1884.0,1882.5,0.75945178]
[1771833701726,7.70218095,1883.9,1882.5,0.75945178]
[1771833701923,7.70218095,1883.8,1882.5,0.75945178]
[1771833702125,0.26547,1884.0,1882.5,0.75945178]
[1771833702325,0.53997243,1883.9,1882.5,0.75945178]
[1771833702527,0.26547,1884.0,1882.5,0.75945178]
[1771833702728,0.53983713,1883.9,1882.5,0.75945178]
[1771833703020,0.53983713,1883.8,1882.5,0.75945178]
[1771833703225,0.26547,1884.0,1882.5,0.75945178]
[1771833703528,7.69728399,1883.9,1882.5,0.75945178]
[1771833703729,0.08455457,1883.7,1882.5,0.75945178]
[1771833705220,0.08473956,1883.5,1882.5,0.75945178]
[1771833708327,0.22962789,1883.4,1882.5,0.75945178]
[1771833711334,0.23793222,1883.2,1882.5,0.75945178]
[1771833712932,0.26923683,1883.9,1882.5,0.75945178]
[1771833713229,0.26923683,1883.7,1882.5,0.75945178]
[1771833713430,0.26938377,1883.5,1882.5,0.75945178]
[1771833713631,11.23214631,1884.1,1882.5,0.75945178]
[1771833713632,0.26938377,1883.3,1882.5,0.75945178]
[1771833714531,11.23214631,1884.1,1882.5,0.75945178]
[1771833714833,0.27072717,1883.9,1882.5,0.75945178]
[1771833715028,0.27072717,1883.7,1882.5,0.75945178]
[1771833715224,0.27072717,1883.5,1882.5,0.75945178]
[1771833715428,0.81044901,1883.4,1882.5,0.75945178]
[1771833715629,0.27087076,1883.3,1882.5,0.75945178]
[1771833719736,0.28042892,1883.1,1882.5,0.75945178]
[1771833720839,0.28059851,1883.6,1882.5,0.75945178]
[1771833721038,0.28059851,1883.4,1882.5,0.75945178]
[1771833721636,0.28251403,1883.6,1882.5,0.75945178]
[1771833721835,0.00453225,1884.1,1882.9,0.70429932]
[1771833722034,0.70791828,1884.7,1883.5,0.70429932]
[1771833722235,0.71245053,1884.6,1883.5,0.70429932]
[1771833722438,0.70791828,1884.8,1883.5,0.70429932]
[1771833722935,0.00453225,1884.7,1883.5,0.70429932]
[1771833723339,0.00453225,1884.7,1883.6,6.91031824]
[1771833723536,0.71318051,1884.8,1883.7,0.70429932]
[1771833723740,0.00453225,1884.7,1883.7,0.70429932]
[1771833724237,0.00453225,1884.6,1883.7,0.70429932]
[1771833724839,0.00526223,1884.8,1883.7,0.70429932]
[1771833727541,0.71318051,1884.8,1883.7,0.70429932]
[1771833729047,0.00526223,1884.8,1883.7,0.70429932]
[1771833729349,0.26525,1885.6,1883.9,0.70429932]
[1771833729350,0.70791828,1885.2,1883.9,0.70429932]
[1771833729545,0.70791828,1885.5,1883.9,0.70429932]
[1771833730346,0.71335979,1885.5,1883.9,0.70975326]
[1771833731847,0.70791828,1885.3,1883.9,0.70975326]
[1771833737456,0.70791828,1885.3,1884.3,0.70429932]
[1771833737954,0.81848399,1885.4,1884.3,0.70429932]
[1771833739156,0.00544151,1885.5,1884.5,0.80100189]
[1771833739459,0.8239255,1885.5,1884.5,0.80100189]
[1771833747256,0.00544151,1885.5,1884.7,0.80100189]
[1771833748363,0.8239255,1885.5,1884.7,0.80100189]
[1771833748557,0.00544151,1885.5,1884.9,0.80100189]
[1771833749158,0.81848399,1885.8,1884.9,0.80100189]
[1771833750263,0.82305087,1885.8,1884.9,0.80100189]
[1771833750962,0.00456688,1885.8,1885.1,0.80100189]
[1771833752864,0.81848399,1886.8,1885.3,0.80100189]
[1771833753166,0.81848399,1886.6,1885.3,0.80100189]
[1771833753359,0.81848399,1886.4,1885.3,0.80100189]
[1771833753864,0.82494419,1886.4,1885.3,0.80649882]
[1771833759870,0.81848399,1886.2,1885.3,0.80649882]
[1771833763168,0.81848399,1886.0,1885.3,0.80649882]
[1771833763472,0.81848399,1886.0,1885.1,0.80100189]
[1771833763767,0.81848399,1885.8,1885.0,0.80100189]
[1771833763972,0.81848399,1885.8,1884.4,0.80100189]
[1771833764467,0.81848399,1885.8,1884.4,0.80668532]
[1771833765268,0.81848399,1885.6,1884.4,0.80668532]
[1771833767067,0.53611509,1885.5,1884.4,0.80668532]
[1771833767266,0.81848399,1885.6,1884.4,0.80668532]
[1771833767472,0.81848399,1885.4,1884.4,0.80668532]
[1771833767872,0.98950847,1885.2,1884.4,0.80668532]
[1771833768177,0.98950847,1885.0,1884.4,0.80668532]
[1771833768477,0.99635785,1885.0,1884.4,0.80668532]
[1771833768675,0.99635785,1885.0,1884.3,1.00154866]
[1771833769773,0.99635785,1885.0,1884.3,1.00749351]
[1771833773479,0.00684938,1885.0,1884.3,1.00749351]
[1771833778380,0.00684938,1885.0,1884.5,1.00154866]
[1771833781086,0.99635785,1885.0,1884.5,1.00154866]
[1771833782182,0.99635785,1885.0,1884.3,0.00594485]
[1771833782484,0.99635785,1885.0,1884.3,1.00749351]
[1771833788790,0.99635785,1885.0,1884.3,0.00594485]
[1771833789186,1.26165785,1885.0,1884.3,0.00594485]
[1771833789487,0.98950847,1884.8,1883.8,1.00154866]
[1771833790287,0.98950847,1884.8,1883.8,1.00614216]
[1771833797090,0.98950847,1884.6,1883.8,1.00614216]
[1771833801094,1.10225143,1884.8,1884.0,1.03633746]
[1771833801997,1.10910081,1885.0,1884.0,1.03633746]
[1771833804701,1.10910081,1885.0,1884.1,0.79279096]
[1771833805301,1.10910081,1885.0,1884.2,1.03633746]
[1771833805501,1.10910081,1885.0,1884.3,1.03633746]
[1771833806706,1.10910081,1885.0,1884.4,1.03633746]
[1771833807404,0.00684938,1885.0,1884.4,1.03633746]
[1771833809400,1.10910081,1885.0,1884.4,1.03633746]
[1771833810397,1.10910081,1885.0,1884.2,1.03633746]
[1771833811002,1.10225143,1884.8,1884.1,1.03633746]
[1771833811403,1.10225143,1884.6,1883.9,1.03633746]
[1771833821911,1.10225143,1884.6,1883.8,1.04093096]
[1771833823014,1.10225143,1884.4,1883.3,1.03633746]
[1771833823717,1.10225143,1884.2,1883.3,1.03633746]
[1771833824116,1.10225143,1884.2,1883.3,1.04075213]
[1771833824320,1.36767143,1884.2,1883.3,0.00441467]
[1771833824619,1.10225143,1884.0,1883.0,1.03633746]
[1771833825416,1.10225143,1884.0,1883.0,1.04289426]
[1771833825620,1.10225143,1883.8,1883.0,0.0065568]
[1771833826117,1.10225143,1883.8,1882.8,1.03633746]
[1771833826413,0.26545,1883.9,1882.3,1.03633746]
[1771833826414,1.10225143,1883.6,1882.3,1.03633746]
[1771833826918,1.10225143,1883.4,1882.3,1.03633746]
[1771833827120,1.10880096,1883.4,1882.3,1.04139256]
[1771833834218,1.10880096,1883.4,1882.3,1.05811566]
[1771833834620,1.10880096,1883.4,1882.3,0.0050551]
[1771833835025,1.13421397,1883.2,1882.0,1.05306056]
[1771833835526,1.13421397,1883.2,1881.8,1.05306056]
[1771833835823,1.13421397,1883.0,1881.7,1.14550078]
[1771833836021,1.13421397,1883.0,1881.7,1.05931151]
[1771833836620,1.13421397,1882.8,1881.7,1.05931151]
[1771833840224,1.13421397,1882.8,1881.8,1.05306056]
[1771833841224,1.13421397,1883.3,1882.0,1.05306056]
[1771833842428,1.13421397,1883.3,1882.2,1.05306056]
[1771833842920,1.13421397,1883.3,1881.9,19.65712491]
[1771833842921,1.13421397,1883.3,1882.4,1.05306056]
[1771833853232,1.13421397,1883.1,1882.4,1.05306056]
[1771833853930,1.13421397,1883.1,1882.1,1.05306056]
[1771833854134,1.13421397,1882.9,1882.1,1.05306056]
[1771833857535,1.14260636,1882.7,1882.1,1.05306056]
[1771833857736,1.14260636,1882.7,1881.8,1.15756388]
[1771833857939,1.14260636,1882.5,1881.8,1.15756388]
[1771833862245,1.14260636,1882.8,1881.8,1.15756388]
[1771833862441,1.14260636,1882.6,1881.8,1.15756388]
[1771833867648,1.14260636,1883.0,1881.8,1.15756388]
[1771833867847,1.14260636,1882.8,1881.8,1.15756388]
[1771833868244,1.14260636,1882.8,1882.1,1.15756388]
[1771833880346,1.14260636,1882.8,1881.7,2.44400372]
[1771833880550,1.14260636,1882.6,1881.9,1.15756388]
[1771833882245,1.14260636,1883.2,1881.9,1.15756388]
[1771833882450,1.14260636,1883.0,1881.9,1.15756388]
[1771833882654,1.14260636,1882.8,1881.9,1.15756388]
[1771833883147,4.44160351,1883.3,1882.3,0.26568]
[1771833883354,0.00654953,1883.4,1882.3,0.26568]
[1771833883355,1.14260636,1883.2,1882.7,1.15756388]
[1771833884457,1.14260636,1883.3,1882.7,1.15756388]
[1771833890774,0.26542,1884.2,1882.7,1.15756388]
[1771833890968,7.73372834,1884.1,1882.7,1.15756388]
[1771833891173,7.73372834,1884.0,1882.7,1.15756388]
[1771833891374,0.0028552,1883.8,1882.7,1.15756388]
[1771833891768,0.00753348,1883.8,1882.7,1.15756388]
[1771833892775,0.00576498,1883.7,1882.7,1.15756388]
[1771833895374,0.00576498,1883.7,1883.2,3.02665129]
[1771833895575,0.00576498,1883.7,1883.2,3.03282755]
[1771833895976,0.00576498,1883.7,1883.3,1.21940033]
[1771833896177,0.00467828,1883.8,1883.3,1.21940033]
[1771833896481,0.00269799,1883.7,1883.3,1.21940033]
[1771833896680,0.00467828,1883.8,1883.2,1.23769027]
[1771833897381,0.00307815,1883.7,1883.2,1.23769027]
[1771833898577,0.00307815,1883.7,1883.2,0.00184195]
[1771833900181,0.00307815,1883.7,1883.2,1.24374372]
[1771833900376,4.70702351,1884.2,1883.4,1.24190177]
[1771833900577,9.53238865,1884.1,1883.2,1.24528279]
[1771833900778,7.72827481,1884.0,1883.2,1.24528279]
[1771833900971,1.80411384,1884.1,1883.2,1.24528279]
[1771833900972,7.72827481,1883.9,1883.2,0.00184195]
[1771833901177,1.80411384,1883.7,1882.9,1.24326064]
[1771833902181,1.81044207,1883.7,1882.9,1.24899473]
[1771833903976,1.81044207,1883.7,1882.9,0.00573409]
[1771833904182,1.80411384,1883.3,1882.5,1.24933727]
[1771833904585,0.52865504,1883.2,1882.5,1.24933727]
[1771833904780,1.80411384,1883.3,1882.5,3.05345111]
[1771833904981,0.2655,1883.6,1882.8,1.24917137]
[1771833905185,7.73187659,1883.5,1882.8,1.25296516]
[1771833905384,7.73187659,1883.4,1882.8,1.25296516]
[1771833905586,0.52866431,1883.3,1882.8,1.25296516]
[1771833905786,0.01635459,1883.5,1882.8,1.25296516]
[1771833906084,0.01635459,1883.3,1882.8,1.25296516]
[1771833915292,0.01635459,1883.3,1882.8,1.23699587]
[1771833915993,0.2655,1883.6,1882.8,1.23699587]
[1771833915994,0.03788607,1883.5,1882.8,1.23699587]
[1771833916197,0.56750653,1883.4,1882.8,1.23699587]
[1771833916386,0.03788607,1883.4,1882.8,1.23699587]
[1771833923303,0.5297463,1883.3,1882.8,1.23699587]
[1771833923502,0.03788607,1883.4,1882.8,1.23699587]
[1771833923802,0.52977641,1883.3,1882.8,1.23699587]
[1771833924102,0.03788607,1883.4,1882.8,1.23699587]
[1771833924305,0.52977641,1883.3,1882.8,1.23699587]
[1771833924502,0.03788607,1883.4,1882.8,1.23699587]
[1771833924698,0.52985784,1883.3,1882.8,1.23699587]
[1771833924899,0.03788607,1883.4,1882.8,1.23699587]
[1771833925199,0.2655,1883.6,1882.8,1.23699587]
[1771833925404,7.73961375,1883.5,1882.8,1.23699587]
[1771833925700,0.52985932,1883.4,1882.8,1.23699587]
[1771833925903,0.00508251,1883.5,1882.8,1.23699587]
[1771833926097,0.52995225,1883.4,1882.8,1.23699587]
[1771833926297,0.00508251,1883.5,1882.8,1.23699587]
[1771833926601,0.2655,1883.6,1882.8,1.23699587]
[1771833926602,0.53668276,1883.4,1882.8,1.23699587]
[1771833926802,0.00661462,1883.4,1882.8,1.23699587]
[1771833927303,0.53698275,1883.3,1882.8,1.23699587]
[1771833927502,0.00680376,1883.3,1882.8,1.23699587]
[1771833928403,0.00680376,1883.3,1882.8,1.26094304]
[1771833928604,0.01575233,1883.1,1882.8,1.26094304]
[1771833929003,0.01593908,1883.5,1882.8,1.26094304]
[1771833929204,0.01593908,1883.3,1882.8,1.26094304]
[1771833929403,0.54634927,1883.2,1882.8,1.26094304]
[1771833929603,0.01593908,1883.2,1882.8,1.26094304]
[1771833929802,0.00959351,1883.5,1882.8,1.26094304]
[1771833930005,0.00959351,1883.3,1882.8,1.26094304]
[1771833930303,0.54014207,1883.2,1882.8,1.26094304]
[1771833930503,0.00959351,1883.2,1882.8,1.26094304]
[1771833934406,0.00249225,1883.5,1882.8,1.26094304]
[1771833934607,0.00389184,1883.3,1882.8,1.26094304]
[1771833934807,0.53484139,1883.2,1882.8,1.26094304]
[1771833935007,0.00389184,1883.2,1882.8,1.26094304]
[1771833937312,0.53466773,1883.1,1882.8,1.26094304]
[1771833937511,0.00366,1883.1,1882.8,0.24873592]
[1771833938413,0.00366,1883.1,1882.8,0.25296776]
[1771833939014,1.80441184,1883.5,1882.8,0.25296776]
[1771833939214,1.01341989,1883.3,1882.8,0.25296776]
[1771833939514,8.76942859,1883.2,1882.8,0.25296776]
[1771833939716,1.01341989,1883.2,1882.8,0.25296776]
[1771833940714,4.70710351,1883.6,1882.8,0.25296776]
[1771833940914,1.01763844,1883.4,1882.8,0.25296776]
[1771833941213,1.01763844,1883.2,1882.8,0.25296776]
[1771833942515,1.03572417,1883.5,1882.8,0.25296776]
[1771833942717,1.03572417,1883.3,1882.8,0.25296776]
[1771833942915,0.5310296,1883.2,1882.8,0.25296776]
[1771833943116,1.03572417,1883.3,1882.8,0.25296776]
[1771833943408,0.5310296,1883.2,1882.8,0.25296776]
[1771833943610,0.5310296,1883.1,1882.8,0.25296776]
[1771833943915,1.03572417,1883.3,1882.8,0.25296776]
[1771833944112,7.75461174,1883.2,1882.8,0.25296776]
[1771833944313,0.53102354,1883.1,1882.8,0.25296776]
[1771833944513,1.03572417,1883.3,1882.8,0.25296776]
[1771833944806,7.75453792,1883.2,1882.8,0.25296776]
[1771833945010,0.53101862,1883.1,1882.8,0.25296776]
[1771833945214,1.03572417,1883.3,1882.8,0.25296776]
[1771833945409,7.75447765,1883.2,1882.8,0.25296776]
[1771833945605,0.53101357,1883.1,1882.8,0.25296776]
[1771833945807,1.03572417,1883.3,1882.8,0.25296776]
[1771833946011,7.75447876,1883.2,1882.8,0.25296776]
[1771833946207,0.53101468,1883.1,1882.8,0.25296776]
[1771833946413,1.04922704,1883.4,1882.8,0.25296776]
[1771833946613,7.75443168,1883.3,1882.8,0.25296776]
[1771833946917,1.04922704,1883.5,1882.8,0.25296776]
[1771833947112,7.75384022,1883.4,1882.8,0.25296776]
[1771833947312,0.53102308,1883.3,1882.8,0.25296776]
[1771833947513,1.05144953,1883.5,1882.8,0.25296776]
[1771833947718,8.80516323,1883.4,1882.8,0.25296776]
[1771833947919,7.7537137,1883.3,1882.8,0.25296776]
[1771833948118,1.05144953,1883.4,1882.8,0.25296776]
[1771833948314,7.75369721,1883.3,1882.8,0.25296776]
[1771833948519,1.05144953,1883.4,1882.8,0.25296776]
[1771833948716,7.75347722,1883.3,1882.8,0.25296776]
[1771833949015,1.05144953,1883.4,1882.8,0.25296776]
[1771833949318,7.75347686,1883.3,1882.8,0.25296776]
[1771833949617,1.05144953,1883.4,1882.8,0.25296776]
[1771833949815,7.75326781,1883.3,1882.8,0.25296776]
[1771833950017,1.05144953,1883.4,1882.8,0.25296776]
[1771833950218,7.75326781,1883.3,1882.8,0.25296776]
[1771833950519,1.06652109,1883.5,1882.8,0.25296776]
[1771833950718,0.53095294,1883.4,1882.8,0.25296776]
[1771833950914,1.06652109,1883.5,1882.8,0.25296776]
[1771833951117,0.53095262,1883.4,1882.8,0.25296776]
[1771833951313,1.06652109,1883.5,1882.8,0.25296776]
[1771833951516,1.07488058,1883.7,1882.8,0.25296776]
[1771833951715,7.75129739,1883.6,1882.8,0.25296776]
[1771833951915,0.53088199,1883.5,1882.8,0.25296776]
[1771833952210,1.07488058,1883.7,1882.8,0.25296776]
[1771833952410,8.78404827,1883.6,1882.8,0.25296776]
[1771833952616,0.53088266,1883.5,1882.8,0.25296776]
[1771833952815,1.06483981,1883.6,1882.8,0.25296776]
[1771833953016,0.53075025,1883.5,1882.8,0.25296776]
[1771833953215,1.06483981,1883.6,1882.8,0.25296776]
[1771833953416,1.5975843,1883.5,1882.8,0.25296776]
[1771833953620,1.06683604,1883.5,1882.8,0.25296776]
[1771833954024,1.07406095,1883.6,1882.8,0.25296776]
[1771833955221,1.08234431,1883.7,1882.8,0.25296776]
[1771833955422,0.53055176,1883.6,1882.8,0.25296776]
[1771833955619,1.08234431,1883.7,1882.8,0.25296776]
[1771833957432,1.08234431,1883.7,1882.9,1.27897208]
[1771833960237,6.6795722,1884.4,1883.2,1.27897208]
[1771833960238,1.1011129,1883.8,1883.2,1.27897208]
[1771833961031,1.1011129,1883.8,1883.0,1.27897208]
[1771833961338,1.10566952,1883.8,1883.0,1.27897208]
[1771833964539,0.00455662,1883.8,1883.3,1.27897208]
[1771833965340,1.10600505,1883.8,1883.3,1.27897208]
[1771833965739,0.00455662,1883.8,1883.3,1.27897208]
[1771833967742,1.09819789,1883.8,1883.3,1.27897208]
[1771833969545,0.00455662,1883.8,1883.3,1.27897208]
[1771833970038,1.0915605,1883.8,1883.0,1.27897208]
[1771833970244,0.00455662,1883.8,1883.1,1.27897208]
[1771833971043,1.0893942,1883.8,1883.1,1.27897208]
[1771833972945,1.0893942,1883.8,1883.2,1.27897208]
[1771833974542,1.0893942,1883.8,1882.9,1.27897208]
[1771833976345,0.52989346,1883.7,1882.9,1.27897208]
[1771833976645,1.07974107,1883.6,1882.9,1.27897208]
[1771833979349,1.07974107,1883.6,1883.0,1.18262642]
[1771833979849,1.06843998,1883.3,1882.8,1.18685826]
[1771833981647,1.06843998,1883.3,1882.8,0.00423184]
[1771833982146,1.06843998,1883.3,1882.8,1.18685826]
[1771833984453,1.06843998,1883.3,1882.6,1.18262642]
[1771833985045,1.04528754,1883.2,1882.5,2.9870488]
[1771833985251,1.04528754,1883.2,1882.5,1.18262642]
[1771833985553,1.04528754,1882.8,1882.2,1.18262642]
[1771833986447,1.04528754,1882.8,1882.4,1.18262642]
[1771833986843,1.04528754,1882.8,1882.3,1.80442238]
[1771833987049,1.04528754,1882.8,1882.3,2.9870488]
[1771833987649,1.04528754,1882.8,1882.4,1.18262642]
[1771833988247,1.06791885,1882.9,1882.6,1.18262642]
[1771833988852,1.06791885,1882.9,1882.4,1.18262642]
[1771833990454,1.06791885,1882.9,1882.5,1.18262642]
[1771833993758,1.06791885,1882.9,1882.3,1.18262642]
[1771833994853,1.06791885,1882.9,1882.2,1.18723983]
[1771833995759,1.05664221,1882.7,1882.1,1.18262642]
[1771833996653,1.05521627,1882.9,1882.2,1.80442238]
[1771833996850,1.05521627,1882.9,1882.4,2.9870488]
[1771833997055,0.19098398,1882.6,1882.1,0.00677229]
[1771833997261,0.19098398,1882.6,1882.1,1.18939871]
[1771833999663,0.18220039,1882.8,1882.3,1.18262642]
[1771834001464,0.18220039,1882.8,1882.3,2.9870488]
[1771834001653,0.18220039,1882.8,1882.4,1.18478365]
[1771834001859,1.80442238,1883.3,1882.5,2.98920603]
[1771834002059,7.67376491,1883.2,1882.5,1.18478365]
[1771834002259,0.52751838,1883.1,1882.5,1.18478365]
[1771834002459,1.80442238,1883.3,1882.5,1.18478365]
[1771834002763,2.07000238,1883.1,1882.3,1.27526157]
[1771834002955,1.80442238,1882.9,1882.3,1.27526157]
[1771834004266,2.07000238,1883.1,1882.3,1.27526157]
[1771834004564,0.52809124,1883.0,1882.3,1.27526157]
[1771834004769,2.07000238,1883.1,1882.3,1.27526157]
[1771834004964,0.52809133,1883.0,1882.4,1.29097245]
[1771834005168,1.80442238,1883.4,1882.6,1.29097245]
[1771834005361,7.6844916,1883.3,1882.6,1.29097245]
[1771834005561,0.52831379,1883.2,1882.6,1.29097245]
[1771834005761,1.80442238,1883.4,1882.6,1.29097245]
[1771834005956,7.68447773,1883.3,1882.6,1.29097245]
[1771834006260,0.52831404,1883.2,1882.6,1.29097245]
[1771834006456,1.80442238,1883.4,1882.6,1.29097245]
[1771834006765,7.68754489,1883.3,1882.6,1.29097245]
[1771834007062,0.52852488,1883.2,1882.6,1.29097245]
[1771834007264,1.80442238,1883.4,1882.6,1.29097245]
[1771834007463,7.690579,1883.3,1882.6,1.29097245]
[1771834007662,0.52873469,1883.2,1882.6,1.29097245]
[1771834007856,1.80442238,1883.4,1882.6,1.29097245]
[1771834008056,7.69058066,1883.3,1882.6,1.29097245]
[1771834008256,7.69327599,1883.2,1882.6,1.29097245]
[1771834008465,0.26551,1883.5,1882.9,1.31878786]
[1771834008661,7.69358035,1883.4,1882.9,1.31878786]
[1771834008858,0.52898492,1883.3,1882.9,1.31878786]
[1771834009065,0.26551,1883.5,1882.9,1.31878786]
[1771834009265,0.52898512,1883.4,1882.9,1.31878786]
[1771834009466,0.26551,1883.5,1882.9,1.31878786]
[1771834009666,0.52924056,1883.4,1882.9,1.31878786]
[1771834009868,0.26551,1883.5,1882.9,1.31878786]
[1771834010067,0.5292405,1883.4,1882.9,1.31878786]
[1771834010468,0.26551,1883.5,1882.9,1.31878786]
[1771834010670,0.52933291,1883.4,1882.9,1.31878786]
[1771834010870,0.26551,1883.5,1882.9,1.31878786]
[1771834011069,0.52933291,1883.4,1882.9,1.31878786]
[1771834011268,0.26551,1883.5,1882.9,1.31878786]
[1771834011468,0.52943065,1883.4,1882.9,1.31878786]
[1771834011667,0.26551,1883.5,1882.9,1.31878786]
[1771834011969,0.52943072,1883.4,1882.9,1.31878786]
[1771834012271,0.529464,1883.3,1882.9,1.31878786]
[1771834012466,0.26551,1883.5,1882.9,1.31878786]
[1771834012669,0.52946403,1883.4,1882.9,1.31878786]
[1771834012868,0.26551,1883.5,1882.9,1.31878786]
[1771834013070,0.52946412,1883.4,1882.9,1.31878786]
[1771834013372,0.26551,1883.5,1882.9,1.31878786]
[1771834013568,0.52949303,1883.4,1882.9,1.31878786]
[1771834013864,0.26551,1883.5,1882.9,1.31878786]
[1771834014063,0.52949314,1883.4,1882.9,1.31878786]
[1771834014269,0.26551,1883.5,1882.9,1.31878786]
[1771834014470,0.52949081,1883.4,1882.9,1.31878786]
[1771834014670,0.26551,1883.5,1882.9,1.31878786]
[1771834014871,0.5294915,1883.4,1883.1,1.30801799]
[1771834015073,4.43064715,1883.7,1883.1,1.30801799]
[1771834015273,7.70028775,1883.6,1883.1,1.30801799]
[1771834015572,7.70028775,1883.5,1883.1,1.30801799]
[1771834015775,0.52949156,1883.4,1883.1,1.30801799]
[1771834016070,4.43064715,1883.7,1883.1,1.30801799]
[1771834016273,7.69945081,1883.6,1883.1,1.30801799]
[1771834016473,7.69945081,1883.5,1883.1,1.30801799]
[1771834016676,0.52943357,1883.4,1883.1,1.30801799]
[1771834016974,4.43064715,1883.7,1883.1,1.30801799]
[1771834017273,7.69809143,1883.6,1883.1,1.30801799]
[1771834017469,7.69809143,1883.5,1883.1,1.30801799]
[1771834017664,0.52933886,1883.4,1883.1,1.30801799]
[1771834017873,0.00455662,1883.8,1883.3,1.30754087]
[1771834018075,7.69666175,1883.7,1883.3,1.30754087]
[1771834018274,0.52926239,1883.6,1883.3,1.30754087]
[1771834018569,0.00455662,1883.8,1883.3,1.30754087]
[1771834018768,7.69494763,1883.7,1883.3,1.30754087]
[1771834018969,0.52914547,1883.6,1883.1,1.30794352]
[1771834019175,1.808979,1883.8,1883.1,1.30794352]
[1771834019374,7.6933739,1883.7,1883.1,1.30794352]
[1771834019576,1.808979,1883.8,1883.1,1.30794352]
[1771834019577,0.52903603,1883.6,1883.1,1.30794352]
[1771834019877,1.80442238,1883.6,1882.9,1.30144706]
[1771834020777,1.808979,1883.8,1882.9,1.30144706]
[1771834020978,7.69289807,1883.7,1883.1,1.30186157]
[1771834021175,0.52899584,1883.6,1883.1,1.30186157]
[1771834021378,1.808979,1883.8,1883.1,1.30186157]
[1771834021574,7.69140339,1883.7,1883.3,1.30186157]
[1771834021774,0.00455662,1883.8,1883.3,1.30186157]
[1771834021979,0.52891706,1883.7,1883.3,1.30186157]
[1771834022178,0.00455662,1883.8,1883.3,1.30186157]
[1771834022379,0.52877433,1883.7,1883.3,1.30186157]
[1771834022579,0.00455662,1883.8,1883.3,1.30186157]
[1771834022879,0.52877332,1883.7,1883.3,1.30186157]
[1771834023180,0.00455662,1883.8,1883.3,1.30186157]
[1771834026783,0.00455662,1883.8,1883.5,1.30126601]
[1771834026983,0.26545,1884.0,1883.5,1.30506082]
[1771834027890,0.27023666,1884.0,1883.5,1.30506082]
[1771834031087,8.33918904,1884.0,1883.2,1.30148782]
[1771834031291,0.55194551,1883.7,1883.0,1.1972729]
[1771834032095,0.55194551,1883.7,1883.0,1.20329914]
[1771834032297,0.26549,1883.7,1883.0,1.20329914]
[1771834033095,0.26549,1883.7,1883.2,1.1972729]
[1771834033987,0.28036427,1883.8,1883.2,1.1972729]
[1771834034195,0.52908739,1883.7,1883.2,1.1972729]
[1771834034395,0.27376429,1883.7,1883.2,1.1972729]
[1771834036197,0.52955985,1883.6,1883.2,1.1972729]
[1771834036398,0.25906497,1883.9,1883.3,1.1972729]
[1771834036596,7.17031603,1883.8,1883.3,1.1972729]
[1771834036798,0.52956485,1883.7,1883.3,1.1972729]
[1771834036999,0.25906497,1883.9,1883.3,1.1972729]
[1771834037300,7.95560933,1883.8,1883.3,1.1972729]
[1771834037494,0.52956316,1883.7,1883.3,1.1972729]
[1771834037696,0.2555785,1883.8,1883.3,1.1972729]
[1771834037998,0.52970737,1883.7,1883.3,1.1972729]
[1771834038197,0.2555785,1883.8,1883.3,1.1972729]
[1771834038397,0.52988619,1883.7,1883.3,1.1972729]
[1771834038700,0.2555785,1883.8,1883.3,1.1972729]
[1771834038894,0.52988624,1883.7,1883.3,1.1972729]
[1771834039094,0.2555785,1883.8,1883.3,1.1972729]
[1771834039294,0.52990422,1883.7,1883.3,1.1972729]
[1771834039495,0.2555785,1883.8,1883.3,1.1972729]
[1771834039695,0.52997988,1883.7,1883.3,1.1972729]
[1771834039989,0.2555785,1883.8,1883.3,1.1972729]
[1771834040194,0.52998109,1883.7,1883.3,1.1972729]
[1771834040395,0.2555785,1883.8,1883.3,1.1972729]
[1771834040698,0.51587939,1883.5,1883.0,1.12070016]
[1771834040896,0.53002144,1883.4,1883.0,1.12070016]
[1771834041101,0.25036939,1883.5,1883.0,1.12070016]
[1771834041296,0.53001588,1883.4,1883.0,1.12070016]
[1771834041492,0.2655,1883.6,1883.0,1.12070016]
[1771834041493,0.25000348,1883.6,1883.0,1.12070016]
[1771834041697,0.53005322,1883.5,1883.0,1.12070016]
[1771834041900,0.25000348,1883.6,1883.0,1.12070016]
[1771834042102,0.53005605,1883.5,1883.0,1.12070016]